fUST/lending_fUST_20240121
["ID","MTS","AMOUNT","RATE_DAILY","PERIOD"]
[312369163,1705837844342,-500.0,0.00028445,2]
[312369164,1705837844351,-526.57075021,0.00028445,2]
[312369165,1705837844360,-500.0,0.00028445,2]
[312369166,1705837844369,-583.33,0.00028445,2]
[312369167,1705837844380,-500.0,0.00028445,2]
[312369169,1705837844392,-500.0,0.00028445,2]
[312369170,1705837844406,-500.0,0.00028445,2]
[312369171,1705837844420,-500.0,0.00028445,2]
[312369172,1705837844433,-500.0,0.00028445,2]
[312369173,1705837844446,-500.0,0.00028445,2]
[312369174,1705837844456,-962.22,0.00028445,2]
[312369175,1705837844468,-1826.33,0.00028445,2]
[312369176,1705837844480,-237.28341523,0.00028445,2]
[312369177,1705837844493,-500.0,0.00028445,2]
[312369178,1705837844506,-4739.13,0.00028445,2]
[312369179,1705837844519,-500.0,0.00028445,2]
[312369180,1705837844531,-6559.48,0.00028445,2]
[312369181,1705837844544,-1178.71,0.00028445,2]
[312369182,1705837844555,-500.0,0.00028445,2]
[312369183,1705837844565,-406.48648431,0.00028445,2]
[312369184,1705837844578,-500.0,0.00028445,2]
[312369185,1705837844589,-1000.0,0.00028445,2]
[312369186,1705837844602,-632.06,0.00028445,2]
[312369187,1705837844614,-500.0,0.00028445,2]
[312369188,1705837844626,-1407.15,0.00028445,2]
[312369189,1705837844637,-500.0,0.00028445,2]
[312369190,1705837844650,-535.94,0.00028445,2]
[312369191,1705837844662,-1886.38,0.00028445,2]
[312369193,1705837844672,-500.0,0.00028445,2]
[312369195,1705837844683,-637.39,0.00028445,2]
[312369196,1705837844697,-532.74,0.00028445,2]
[312369197,1705837844708,-692.86,0.00028445,2]
[312369198,1705837844722,-500.0,0.00028445,2]
[312369199,1705837844733,-752.98,0.00028445,2]
[312369200,1705837844745,-500.0,0.00028445,2]
[312369201,1705837844757,-1166.93,0.00028445,2]
[312369202,1705837844769,-7044.69,0.00028445,2]
[312369203,1705837844780,-500.0,0.00028445,2]
[312369204,1705837844791,-2507.74,0.00028445,2]
[312369205,1705837844805,-571.71,0.00028456,2]
[312369206,1705837844818,-500.0,0.00028456,2]
[312369207,1705837844831,-500.0,0.00028456,2]
[312369208,1705837844843,-500.0,0.00028456,2]
[312369209,1705837844854,-500.0,0.00028456,2]
[312369210,1705837844865,-375.34644847,0.00028456,2]
[312369211,1705837844875,-665.42,0.00028456,2]
[312369212,1705837844885,-500.0,0.00028456,2]
[312369213,1705837844896,-500.0,0.00028456,2]
[312369214,1705837844908,-500.0,0.00028456,2]
[312369215,1705837844919,-500.0,0.00028456,2]
[312369216,1705837844930,-500.0,0.00028456,2]
[312369217,1705837844942,-161.90922451,0.00028456,2]
[312369218,1705837844953,-941.09,0.00028456,2]
[312369219,1705837844963,-613.43,0.00028456,2]
[312369220,1705837844974,-500.0,0.00028456,2]
[312369221,1705837844984,-1082.52,0.00028456,2]
[312369222,1705837844995,-500.0,0.00028456,2]
[312369223,1705837845006,-500.0723576,0.00028456,2]
[312369224,1705837845017,-291.13137368,0.00028456,2]
[312369225,1705837845028,-500.0,0.00028456,2]
[312369226,1705837845039,-653.98,0.00028456,2]
[312369227,1705837845051,-500.0,0.00028456,2]
[312369228,1705837845063,-500.0,0.00028456,2]
[312369229,1705837845077,-1031.0,0.00028456,2]
[312369230,1705837845088,-500.0,0.00028456,2]
[312369231,1705837845099,-511.9404377,0.00028456,2]
[312369232,1705837845109,-500.0,0.00028456,2]
[312369233,1705837845121,-1357.28,0.00028456,2]
[312369234,1705837845132,-500.0,0.00028456,2]
[312369235,1705837845143,-500.0,0.00028456,2]
[312369236,1705837845159,-500.0,0.00028456,2]
[312369237,1705837845170,-526.31782774,0.00028456,2]
[312369238,1705837845181,-500.0,0.00028456,2]
[312369239,1705837845192,-500.0,0.00028456,2]
[312369240,1705837845203,-2039.73,0.00028456,2]
[312369241,1705837845215,-500.0,0.00028456,2]
[312369242,1705837845227,-500.0,0.00028456,2]
[312369243,1705837845239,-1053.62,0.00028456,2]
[312369244,1705837845249,-500.0,0.00028456,2]
[312369245,1705837845260,-1117.92,0.00028456,2]
[312369246,1705837845272,-500.0,0.00028456,2]
[312369247,1705837845283,-500.0,0.00028456,2]
[312369248,1705837845294,-500.0,0.00028456,2]
[312369249,1705837845304,-594.84353903,0.00028456,2]
[312369250,1705837845316,-500.0,0.00028456,2]
[312369251,1705837845327,-736.19,0.00028456,2]
[312369252,1705837845337,-500.0,0.00028456,2]
[312369253,1705837845348,-500.0,0.00028456,2]
[312369254,1705837845359,-500.0,0.00028456,2]
[312369255,1705837845370,-500.0,0.00028456,2]
[312369256,1705837845381,-540.95,0.00028456,2]
[312369257,1705837845391,-500.0,0.00028456,2]
[312369258,1705837845403,-577.9,0.00028456,2]
[312369259,1705837845413,-500.0,0.00028456,2]
[312369260,1705837845424,-500.0,0.00028456,2]
[312369261,1705837845435,-500.0,0.00028456,2]
[312369262,1705837845445,-500.0,0.00028456,2]
[312369263,1705837845456,-500.0,0.00028456,2]
[312369264,1705837845467,-500.0,0.00028456,2]
[312369265,1705837845477,-487.49378126,0.00028456,2]
[312369266,1705837845488,-500.0,0.00028456,2]
[312369267,1705837845499,-500.0,0.00028456,2]
[312369268,1705837845510,-500.0,0.00028456,2]
[312369269,1705837845521,-571.94,0.00028456,2]
[312369270,1705837845533,-500.0,0.00028456,2]
[312369271,1705837845543,-500.0,0.00028456,2]
[312369272,1705837845555,-500.0,0.00028456,2]
[312369273,1705837845565,-500.0,0.00028456,2]
[312369274,1705837845576,-500.0,0.00028467,2]
[312369275,1705837845586,-500.0,0.00028467,2]
[312369276,1705837845597,-500.0,0.00028467,2]
[312369277,1705837845608,-500.0,0.00028467,2]
[312369278,1705837845619,-638.48739459,0.00028471,2]
[312369279,1705837845630,-500.0,0.00028471,2]
[312369280,1705837845641,-500.0,0.00028471,2]
[312369281,1705837845652,-488.04280479,0.00028471,2]
[312369282,1705837845662,-500.0,0.00028471,2]
[312369283,1705837845673,-11374.79,0.00028493,2]
[312369284,1705837845685,-500.0,0.00028493,2]
[312369285,1705837845696,-1178.94,0.00028493,2]
[312369286,1705837845707,-500.0,0.00028493,2]
[312369287,1705837845717,-20724.5,0.00028493,2]
[312369288,1705837845727,-500.0,0.00028493,2]
[312369291,1705837845895,-500.0,0.00028493,2]
[312369292,1705837845907,-500.0,0.00028708,2]
[312369293,1705837845917,-500.0,0.00028708,2]
[312369294,1705837845927,-500.0,0.00028708,2]
[312369295,1705837845936,-500.0,0.00028708,2]
[312369296,1705837845946,-4929.22,0.00028708,2]
[312369297,1705837845956,-500.0,0.00028708,2]
[312369298,1705837845967,-500.0,0.00028708,2]
[312369299,1705837845977,-500.0,0.00028708,2]
[312369300,1705837845986,-606.58,0.00028708,2]
[312369301,1705837845995,-1029.84,0.00028708,2]
[312369302,1705837846004,-674.02,0.00028708,2]
[312369303,1705837846014,-500.0,0.00028708,2]
[312369304,1705837846023,-500.0,0.00028708,2]
[312369305,1705837846033,-6821.42,0.00028708,2]
[312369307,1705837846042,-961.99,0.00028708,2]
[312369308,1705837846051,-500.0,0.00028708,2]
[312369309,1705837846061,-500.0,0.00028708,2]
[312369310,1705837846071,-1675.37,0.00028708,2]
[312369311,1705837846082,-500.0,0.00028708,2]
[312369312,1705837846091,-1188.66,0.00028708,2]
[312369313,1705837846101,-500.0,0.00028708,2]
[312369314,1705837846110,-500.0,0.00028708,2]
[312369315,1705837846121,-1035.59,0.00028708,2]
[312369316,1705837846130,-500.0,0.00028708,2]
[312369317,1705837846139,-500.0,0.00028708,2]
[312369318,1705837846149,-500.0,0.00028708,2]
[312369319,1705837846158,-633.27,0.00028708,2]
[312369320,1705837846168,-334.34482967,0.00028708,2]
[312369321,1705837846177,-616.88,0.00028708,2]
[312369322,1705837846186,-500.0,0.00028708,2]
[312369323,1705837846195,-500.0,0.00028708,2]
[312369324,1705837846204,-500.0,0.00028708,2]
[312369325,1705837846213,-500.0,0.00028708,2]
[312369326,1705837846222,-1557.67,0.00028708,2]
[312369327,1705837846232,-1565.51,0.00028708,2]
[312369328,1705837846242,-500.0,0.00028708,2]
[312369329,1705837846252,-552.64,0.00028708,2]
[312369330,1705837846261,-500.0,0.00028719,2]
[312369331,1705837846271,-500.0,0.00028719,2]
[312369332,1705837846280,-500.0,0.00028719,2]
[312369333,1705837846290,-500.0,0.00028719,2]
[312369334,1705837846299,-500.0,0.00028719,2]
[312369335,1705837846308,-1046.76,0.00028719,2]
[312369336,1705837846318,-590.64,0.00028719,2]
[312369337,1705837846327,-500.0,0.00028719,2]
[312369338,1705837846337,-500.0,0.00028719,2]
[312369339,1705837846346,-921.12,0.00028719,2]
[312369340,1705837846355,-500.0,0.00028719,2]
[312369341,1705837846364,-272.43799555,0.00028719,2]
[312369342,1705837846374,-500.0,0.00028719,2]
[312369343,1705837846383,-426.72018278,0.00028719,2]
[312369344,1705837846392,-583.33,0.00028719,2]
[312369345,1705837846402,-500.0,0.00028719,2]
[312369346,1705837846411,-500.0,0.00028719,2]
[312369347,1705837846421,-500.0,0.00028719,2]
[312369348,1705837846431,-500.0,0.00028719,2]
[312369349,1705837846441,-500.0,0.00028719,2]
[312369350,1705837846450,-500.0,0.00028719,2]
[312369351,1705837846459,-962.22,0.00028719,2]
[312369352,1705837846469,-1826.33,0.00028719,2]
[312369353,1705837846478,-500.0,0.00028719,2]
[312369354,1705837846488,-4739.13,0.00028719,2]
[312369355,1705837846497,-500.0,0.00028719,2]
[312369356,1705837846506,-6559.48,0.00028719,2]
[312369357,1705837846516,-1178.71,0.00028719,2]
[312369358,1705837846525,-500.0,0.00028719,2]
[312369359,1705837846535,-500.0,0.00028719,2]
[312369360,1705837846544,-1000.0,0.00028719,2]
[312369361,1705837846553,-632.06,0.00028719,2]
[312369363,1705837846562,-500.0,0.00028719,2]
[312369365,1705837846571,-1407.15,0.00028719,2]
[312369367,1705837846580,-500.0,0.00028719,2]
[312369368,1705837846589,-535.94,0.00028719,2]
[312369370,1705837846599,-1886.38,0.00028719,2]
[312369371,1705837846608,-500.0,0.00028719,2]
[312369372,1705837846618,-637.39,0.00028719,2]
[312369373,1705837846627,-532.74,0.00028719,2]
[312369374,1705837846636,-692.86,0.00028719,2]
[312369375,1705837846646,-500.0,0.00028719,2]
[312369376,1705837846655,-752.98,0.00028719,2]
[312369377,1705837846666,-500.0,0.00028719,2]
[312369378,1705837846675,-1166.93,0.00028719,2]
[312369379,1705837846684,-7044.69,0.00028719,2]
[312369380,1705837846694,-285.31719829,0.00028719,2]
[312369381,1705837846703,-2507.74,0.00028719,2]
[312369382,1705837846712,-442.11644239,0.00028729,2]
[312369383,1705837846721,-500.0,0.00028729,2]
[312369384,1705837846731,-639.1172645,0.00028729,2]
[312369385,1705837846740,-543.52433295,0.00028729,2]
[312369386,1705837846750,-500.0,0.00028729,2]
[312369387,1705837846759,-500.0,0.00028729,2]
[312369388,1705837846768,-496.4743012,0.00028729,2]
[312369389,1705837846777,-500.0,0.00028729,2]
[312369390,1705837846787,-500.0,0.00028729,2]
[312369391,1705837846796,-500.0,0.00028729,2]
[312369392,1705837846805,-500.0,0.00028729,2]
[312369393,1705837846814,-500.0,0.00028729,2]
[312369394,1705837846823,-500.0,0.00028729,2]
[312369395,1705837846832,-500.0,0.00028729,2]
[312369396,1705837846841,-500.0,0.00028729,2]
[312369397,1705837846851,-500.0,0.00028729,2]
[312369398,1705837846859,-500.0,0.00028729,2]
[312369399,1705837846868,-547.07212796,0.00028729,2]
[312369400,1705837846878,-500.0,0.00028729,2]
[312369401,1705837846887,-500.0,0.00028729,2]
[312369402,1705837846896,-500.0,0.00028729,2]
[312369403,1705837846905,-500.0,0.00028729,2]
[312369404,1705837846914,-500.0,0.00028729,2]
[312369405,1705837846923,-443.86375845,0.00028729,2]
[312369406,1705837846932,-500.0,0.00028729,2]
[312369407,1705837846941,-571.71,0.0002873,2]
[312369408,1705837846951,-461.06310589,0.0002873,2]
[312369409,1705837846959,-500.0,0.0002873,2]
[312369410,1705837846969,-500.0,0.0002873,2]
[312369411,1705837846981,-665.42,0.0002873,2]
[312369412,1705837846991,-500.0,0.0002873,2]
[312369413,1705837847001,-500.0,0.0002873,2]
[312369414,1705837847011,-500.0,0.0002873,2]
[312369415,1705837847021,-500.0,0.0002873,2]
[312369416,1705837847031,-500.0,0.0002873,2]
[312369417,1705837847041,-941.09,0.0002873,2]
[312369418,1705837847050,-613.43,0.0002873,2]
[312369419,1705837847060,-500.0,0.0002873,2]
[312369420,1705837847072,-1082.52,0.0002873,2]
[312369421,1705837847083,-500.0,0.0002873,2]
[312369422,1705837847092,-500.0,0.0002873,2]
[312369423,1705837847103,-653.98,0.0002873,2]
[312369424,1705837847112,-500.0,0.0002873,2]
[312369425,1705837847121,-500.0,0.0002873,2]
[312369426,1705837847130,-1031.0,0.0002873,2]
[312369427,1705837847139,-500.0,0.0002873,2]
[312369428,1705837847151,-453.82432863,0.0002873,2]
[312369429,1705837847160,-1357.28,0.0002873,2]
[312369430,1705837847169,-500.0,0.0002873,2]
[312369431,1705837847177,-500.0,0.0002873,2]
[312369432,1705837847186,-500.0,0.0002873,2]
[312369433,1705837847196,-500.0,0.0002873,2]
[312369434,1705837847205,-2039.73,0.0002873,2]
[312369435,1705837847214,-503.44840265,0.0002873,2]
[312369436,1705837847223,-1053.62,0.0002873,2]
[312369437,1705837847233,-500.0,0.0002873,2]
[312369438,1705837847242,-1117.92,0.0002873,2]
[312369439,1705837847252,-270.22224209,0.0002873,2]
[312369440,1705837847261,-500.0,0.0002873,2]
[312369441,1705837847270,-500.0,0.0002873,2]
[312369442,1705837847279,-500.0,0.0002873,2]
[312369443,1705837847288,-736.19,0.0002873,2]
[312369444,1705837847298,-500.0,0.0002873,2]
[312369445,1705837847307,-500.0,0.0002873,2]
[312369446,1705837847316,-500.0,0.0002873,2]
[312369447,1705837847326,-500.0,0.0002873,2]
[312369448,1705837847335,-540.95,0.0002873,2]
[312369449,1705837847344,-577.9,0.0002873,2]
[312369450,1705837847356,-500.0,0.0002873,2]
[312369451,1705837847365,-500.0,0.0002873,2]
[312369452,1705837847375,-500.0,0.0002873,2]
[312369453,1705837847384,-500.0,0.0002873,2]
[312369454,1705837847393,-500.0,0.0002873,2]
[312369455,1705837847403,-500.0,0.0002873,2]
[312369456,1705837847412,-219.39829432,0.0002873,2]
[312369457,1705837847421,-500.0,0.0002873,2]
[312369458,1705837847431,-500.0,0.0002873,2]
[312369459,1705837847440,-571.94,0.0002873,2]
[312369460,1705837847449,-500.0,0.0002873,2]
[312369461,1705837847459,-607.21258544,0.0002873,2]
[312369462,1705837847468,-500.0,0.0002873,2]
[312369463,1705837847477,-500.0,0.0002873,2]
[312369464,1705837847486,-500.0,0.00028741,2]
[312369465,1705837847496,-263.76446856,0.00028741,2]
[312369466,1705837847505,-500.0,0.00028741,2]
[312369467,1705837847514,-500.0,0.00028741,2]
[312369468,1705837847523,-500.0,0.00028741,2]
[312369469,1705837847534,-500.0,0.00028741,2]
[312369470,1705837847552,-500.0,0.00028745,2]
[312369471,1705837847565,-500.0,0.00028745,2]
[312369472,1705837847574,-1871.54655675,0.0002875,4]
[312369473,1705837847584,-11374.79,0.00028767,2]
[312369474,1705837847594,-500.0,0.00028767,2]
[312369475,1705837847604,-1178.94,0.00028767,2]
[312369476,1705837847614,-500.0,0.00028767,2]
[312369477,1705837847624,-20724.5,0.00028767,2]
[312369478,1705837847633,-500.0,0.00028767,2]
[312369479,1705837847644,-500.0,0.00028767,2]
[312369480,1705837847653,-184.967989,0.00028767,2]
[312369481,1705837847663,-155.0,0.00028837,2]
[312369482,1705837847673,-171.32021493,0.00028893,2]
[312369483,1705837847683,-500.0,0.00028982,2]
[312369484,1705837847693,-500.0,0.00028982,2]
[312369485,1705837847703,-500.0,0.00028982,2]
[312369486,1705837847713,-500.0,0.00028982,2]
[312369487,1705837847722,-4929.22,0.00028982,2]
[312369488,1705837847732,-500.0,0.00028982,2]
[312369489,1705837847743,-500.0,0.00028982,2]
[312369490,1705837847753,-500.0,0.00028982,2]
[312369491,1705837847762,-606.58,0.00028982,2]
[312369492,1705837847772,-1029.84,0.00028982,2]
[312369493,1705837847782,-674.02,0.00028982,2]
[312369494,1705837847791,-500.0,0.00028982,2]
[312369495,1705837847800,-500.0,0.00028982,2]
[312369496,1705837847811,-6821.42,0.00028982,2]
[312369497,1705837847820,-961.99,0.00028982,2]
[312369498,1705837847830,-500.0,0.00028982,2]
[312369499,1705837847839,-500.0,0.00028982,2]
[312369500,1705837847849,-1675.37,0.00028982,2]
[312369501,1705837847858,-500.0,0.00028982,2]
[312369502,1705837847869,-1188.66,0.00028982,2]
[312369503,1705837847878,-500.0,0.00028982,2]
[312369504,1705837847888,-500.0,0.00028982,2]
[312369505,1705837847898,-1035.59,0.00028982,2]
[312369506,1705837847907,-500.0,0.00028982,2]
[312369507,1705837847917,-500.0,0.00028982,2]
[312369508,1705837847927,-500.0,0.00028982,2]
[312369509,1705837847937,-633.27,0.00028982,2]
[312369510,1705837847946,-616.88,0.00028982,2]
[312369511,1705837847956,-500.0,0.00028982,2]
[312369512,1705837847966,-500.0,0.00028982,2]
[312369513,1705837847975,-500.0,0.00028982,2]
[312369514,1705837847986,-500.0,0.00028982,2]
[312369515,1705837847995,-1557.67,0.00028982,2]
[312369516,1705837848005,-1565.51,0.00028982,2]
[312369517,1705837848014,-500.0,0.00028982,2]
[312369518,1705837848023,-552.64,0.00028982,2]
[312369519,1705837848033,-500.0,0.00028993,2]
[312369520,1705837848042,-500.0,0.00028993,2]
[312369521,1705837848051,-500.0,0.00028993,2]
[312369522,1705837848063,-500.0,0.00028993,2]
[312369523,1705837848073,-500.0,0.00028993,2]
[312369524,1705837848082,-1046.76,0.00028993,2]
[312369525,1705837848091,-590.64,0.00028993,2]
[312369526,1705837848100,-500.0,0.00028993,2]
[312369527,1705837848110,-500.0,0.00028993,2]
[312369528,1705837848119,-921.12,0.00028993,2]
[312369529,1705837848129,-500.0,0.00028993,2]
[312369530,1705837848140,-500.0,0.00028993,2]
[312369531,1705837848150,-583.33,0.00028993,2]
[312369532,1705837848160,-500.0,0.00028993,2]
[312369533,1705837848170,-500.0,0.00028993,2]
[312369534,1705837848180,-500.0,0.00028993,2]
[312369535,1705837848190,-500.0,0.00028993,2]
[312369536,1705837848200,-500.0,0.00028993,2]
[312369537,1705837848210,-500.0,0.00028993,2]
[312369538,1705837848219,-962.22,0.00028993,2]
[312369539,1705837848229,-1826.33,0.00028993,2]
[312369540,1705837848239,-500.0,0.00028993,2]
[312369541,1705837848250,-4739.13,0.00028993,2]
[312369542,1705837848260,-500.0,0.00028993,2]
[312369543,1705837848271,-6559.48,0.00028993,2]
[312369544,1705837848280,-1178.71,0.00028993,2]
[312369545,1705837848290,-500.0,0.00028993,2]
[312369546,1705837848300,-500.0,0.00028993,2]
[312369547,1705837848310,-1000.0,0.00028993,2]
[312369548,1705837848320,-632.06,0.00028993,2]
[312369549,1705837848330,-500.0,0.00028993,2]
[312369550,1705837848341,-1407.15,0.00028993,2]
[312369551,1705837848350,-500.0,0.00028993,2]
[312369552,1705837848359,-535.94,0.00028993,2]
[312369553,1705837848369,-1886.38,0.00028993,2]
[312369554,1705837848379,-500.0,0.00028993,2]
[312369555,1705837848389,-637.39,0.00028993,2]
[312369556,1705837848398,-532.74,0.00028993,2]
[312369557,1705837848407,-692.86,0.00028993,2]
[312369558,1705837848417,-301.58285632,0.00028993,2]
[312369559,1705837848426,-752.98,0.00028993,2]
[312369560,1705837848435,-500.0,0.00028993,2]
[312369561,1705837848445,-1166.93,0.00028993,2]
[312369562,1705837848454,-7044.69,0.00028993,2]
[312369563,1705837848463,-151.0,0.00028998,2]
[312369564,1705837848473,-1880.36577671,0.00029,2]
[312369565,1705837848482,-571.71,0.00029004,2]
[312369566,1705837848492,-500.0,0.00029004,2]
[312369567,1705837848502,-500.0,0.00029004,2]
[312369568,1705837848511,-665.42,0.00029004,2]
[312369569,1705837848520,-500.0,0.00029004,2]
[312369570,1705837848530,-500.0,0.00029004,2]
[312369571,1705837848539,-500.0,0.00029004,2]
[312369572,1705837848548,-500.0,0.00029004,2]
[312369573,1705837848557,-574.04952877,0.00029004,2]
[312369574,1705837848566,-941.09,0.00029004,2]
[312369575,1705837848576,-613.43,0.00029004,2]
[312369576,1705837848585,-500.0,0.00029004,2]
[312369577,1705837848595,-774.05957933,0.00029004,2]
[312369578,1705837849012,-2646.1,0.00027914,3]
[312369579,1705837849024,-304.35448858,0.00027914,3]
[312369582,1705837887957,200.0,0.00030136,15]
[312369634,1705838063788,17363.8102545,0.0002979,7]
[312369636,1705838188388,200.0,0.00030136,15]
[312369638,1705838488248,200.0,0.00028864,15]
[312369642,1705838788158,200.0,0.00027709,15]
[312369643,1705838788945,280.0,0.0003048,15]
[312369644,1705838827093,-154.73694719,0.00024763,4]
[312369645,1705838827115,-166.666666,0.00024764,2]
[312369646,1705838827135,-2073.50516209,0.0002519,2]
[312369647,1705838827155,-5575.7223412,0.00025191,2]
[312369655,1705839032163,-154.73694719,0.00022671,4]
[312369656,1705839032172,-9360.49211109,0.0002519,2]
[312369698,1705839038431,-10337.04374556,0.0002519,2]
[312369699,1705839038441,-2023.97736586,0.0002519,2]
[312369700,1705839038450,-1825.57072994,0.00025191,2]
[312369701,1705839038460,-154.73694719,0.00025191,2]
[312369702,1705839038474,-24900.0,0.00025192,2]
[312369703,1705839038482,-263.989752,0.00025241,2]
[312369704,1705839038491,-181.321518,0.00025646,2]
[312369705,1705839038501,-7706.20841116,0.0002624,2]
[312369706,1705839038510,-211.49658438,0.00026241,2]
[312369707,1705839038519,-271.26976504,0.00026242,2]
[312369708,1705839038529,-920.19132795,0.00026882,2]
[312369709,1705839038539,-623.97635239,0.0002728,2]
[312369710,1705839038548,-4211.98,0.00027377,3]
[312369711,1705839038557,-3509.98,0.00027377,3]
[312369712,1705839038567,-6065.25,0.00027387,3]
[312369713,1705839038576,-5054.37,0.00027387,3]
[312369714,1705839038586,-500.0,0.00027397,2]
[312369715,1705839038595,-500.0,0.00027397,2]
[312369716,1705839038604,-465.47627726,0.00027397,2]
[312369717,1705839038613,-698.86,0.00027397,2]
[312369718,1705839038622,-500.0,0.00027397,2]
[312369719,1705839038631,-500.0,0.00027397,2]
[312369720,1705839038640,-500.0,0.00027397,2]
[312369721,1705839038649,-1450.43,0.00027397,2]
[312369722,1705839038658,-2039.73,0.00027397,2]
[312369723,1705839038667,-500.0,0.00027397,2]
[312369724,1705839038676,-500.0,0.00027397,2]
[312369725,1705839038685,-500.0,0.00027397,2]
[312369726,1705839038694,-500.0,0.00027397,2]
[312369727,1705839038704,-500.0,0.00027397,2]
[312369728,1705839038713,-561.68,0.00027397,2]
[312369729,1705839038723,-500.0,0.00027397,2]
[312369730,1705839038732,-505.48,0.00027397,2]
[312369731,1705839038741,-500.0,0.00027397,2]
[312369732,1705839038750,-500.0,0.00027397,2]
[312369733,1705839038759,-500.0,0.00027397,2]
[312369734,1705839038768,-990.55,0.00027397,2]
[312369735,1705839038777,-500.0,0.00027397,2]
[312369736,1705839038786,-500.0,0.00027397,2]
[312369737,1705839038795,-500.0,0.00027397,2]
[312369738,1705839038804,-388.68371797,0.00027397,2]
[312369739,1705839038813,-500.0,0.00027397,2]
[312369740,1705839038822,-557.83,0.00027397,2]
[312369741,1705839038831,-500.0,0.00027397,2]
[312369742,1705839038841,-988.6,0.00027397,2]
[312369743,1705839038850,-500.0,0.00027397,2]
[312369744,1705839038859,-500.0,0.00027397,2]
[312369745,1705839038868,-500.0,0.00027397,2]
[312369746,1705839038876,-500.0,0.00027397,2]
[312369747,1705839038886,-500.0,0.00027397,2]
[312369748,1705839038895,-500.0,0.00027397,2]
[312369749,1705839038904,-879.15,0.00027397,2]
[312369750,1705839038913,-500.0,0.00027397,2]
[312369751,1705839038922,-500.0,0.00027397,2]
[312369752,1705839038933,-500.0,0.00027397,2]
[312369753,1705839038942,-500.0,0.00027397,2]
[312369754,1705839038950,-500.0,0.00027397,2]
[312369755,1705839038959,-500.0,0.00027397,2]
[312369756,1705839038968,-500.0,0.00027397,2]
[312369757,1705839038977,-500.0,0.00027397,2]
[312369758,1705839038986,-550.93,0.00027397,2]
[312369759,1705839038995,-500.0,0.00027397,2]
[312369760,1705839039005,-500.0,0.00027397,2]
[312369761,1705839039014,-500.0,0.00027397,2]
[312369762,1705839039024,-500.0,0.00027397,2]
[312369763,1705839039033,-500.0,0.00027397,2]
[312369764,1705839039043,-500.0,0.00027397,2]
[312369765,1705839039051,-4626.55,0.00027397,2]
[312369766,1705839039061,-500.0,0.00027397,2]
[312369767,1705839039071,-500.0,0.00027397,2]
[312369768,1705839039081,-500.0,0.00027397,2]
[312369769,1705839039090,-183.33898709,0.00027397,2]
[312369770,1705839039099,-500.0,0.00027397,2]
[312369771,1705839039109,-1618.06,0.00027397,2]
[312369772,1705839039119,-912.4,0.00027397,2]
[312369773,1705839039129,-500.0,0.00027397,2]
[312369774,1705839039138,-500.0,0.00027397,2]
[312369775,1705839039148,-903.14,0.00027397,2]
[312369776,1705839039157,-500.0,0.00027397,2]
[312369777,1705839039167,-500.0,0.00027397,2]
[312369778,1705839039176,-6402.56,0.00027397,2]